[Event "Early-Titled-Tuesday-Blitz-March-12-2024"]
[Site "Chess.com"]
[Date "2024.03.12"]
[Round "8"]
[White "willcab71"]
[Black "Kostukov_Alex"]
[Result "0-1"]
[WhiteElo "2130"]
[BlackElo "2314"]
[TimeControl "180+1"]
[EndTime "9:27:04 PDT"]
[Termination "Kostukov_Alex won on time"]

1. Nf3 {[%clk 0:02:57.4]} 1... Nf6 {[%clk 0:01:40.8]} 2. g3 {[%clk 0:02:43]}
2... g6 {[%clk 0:01:39.3]} 3. Bg2 {[%clk 0:02:43.5]} 3... Bg7 {[%clk 0:01:40]}
4. O-O {[%clk 0:02:44.4]} 4... O-O {[%clk 0:01:40.4]} 5. d3 {[%clk 0:02:45.1]}
5... c5 {[%clk 0:01:40.7]} 6. Nc3 {[%clk 0:02:45.7]} 6... d5 {[%clk 0:01:41.6]}
7. e4 {[%clk 0:02:44.4]} 7... Nc6 {[%clk 0:01:42.5]} 8. exd5 {[%clk 0:02:43.7]}
8... Nxd5 {[%clk 0:01:43.4]} 9. Nxd5 {[%clk 0:02:42.3]} 9... Qxd5 {[%clk
0:01:44.3]} 10. Nd2 {[%clk 0:02:35.4]} 10... Qd7 {[%clk 0:01:39.9]} 11. Nc4
{[%clk 0:02:34.8]} 11... b6 {[%clk 0:01:39.7]} 12. Re1 {[%clk 0:02:27.3]} 12...
Bb7 {[%clk 0:01:39.3]} 13. Qe2 {[%clk 0:02:26.9]} 13... Rfe8 {[%clk 0:01:33.6]}
14. c3 {[%clk 0:02:23]} 14... Rad8 {[%clk 0:01:32.5]} 15. Rd1 {[%clk 0:02:17]}
15... h6 {[%clk 0:01:29.5]} 16. Be3 {[%clk 0:02:13.3]} 16... Kh7 {[%clk
0:01:27.3]} 17. Rd2 {[%clk 0:02:11.7]} 17... e5 {[%clk 0:01:26.4]} 18. Rad1
{[%clk 0:02:10.5]} 18... Qc7 {[%clk 0:01:22.5]} 19. a4 {[%clk 0:02:09.8]} 19...
Ne7 {[%clk 0:01:17.2]} 20. Bxb7 {[%clk 0:02:07.9]} 20... Qxb7 {[%clk 0:01:18.1]}
21. Qf1 {[%clk 0:01:45.3]} 21... Nf5 {[%clk 0:01:17.1]} 22. Qg2 {[%clk
0:01:42.8]} 22... Qd7 {[%clk 0:01:17]} 23. Qe4 {[%clk 0:01:35]} 23... Qxa4
{[%clk 0:01:13.9]} 24. Nd6 {[%clk 0:00:50]} 24... Qxe4 {[%clk 0:01:11.8]} 25.
dxe4 {[%clk 0:00:49.5]} 25... Nxd6 {[%clk 0:00:57.9]} 26. Rxd6 {[%clk
0:00:48.8]} 26... Bf6 {[%clk 0:00:57.8]} 27. Rd7 {[%clk 0:00:45]} 27... Kg7
{[%clk 0:00:56]} 28. Kf1 {[%clk 0:00:40.9]} 28... Rxd7 {[%clk 0:00:52.3]} 29.
Rxd7 {[%clk 0:00:40.4]} 29... Re7 {[%clk 0:00:52.9]} 30. Rd6 {[%clk 0:00:33.7]}
30... Rc7 {[%clk 0:00:49.1]} 31. c4 {[%clk 0:00:33.2]} 31... Be7 {[%clk
0:00:48.4]} 32. Rd5 {[%clk 0:00:32.7]} 32... f6 {[%clk 0:00:48.8]} 33. f4 {[%clk
0:00:31.3]} 33... exf4 {[%clk 0:00:42.8]} 34. gxf4 {[%clk 0:00:26.8]} 34... Kf7
{[%clk 0:00:41.6]} 35. b3 {[%clk 0:00:26.5]} 35... Ke6 {[%clk 0:00:36.1]} 36.
f5+ {[%clk 0:00:25.3]} 36... Kf7 {[%clk 0:00:34]} 37. Bf4 {[%clk 0:00:19.5]}
37... Rb7 {[%clk 0:00:31.3]} 38. Kg2 {[%clk 0:00:05.7]} 38... g5 {[%clk
0:00:30.9]} 39. Bg3 {[%clk 0:00:05.9]} 39... Ke8 {[%clk 0:00:28]} 40. h4 {[%clk
0:00:06]} 40... Rd7 {[%clk 0:00:28.1]} 41. h5 {[%clk 0:00:05.6]} 41... Rxd5
{[%clk 0:00:24.8]} 42. exd5 {[%clk 0:00:05.9]} 42... Kd7 {[%clk 0:00:25.5]} 43.
Bb8 {[%clk 0:00:06.1]} 43... Bd6 {[%clk 0:00:24.3]} 44. Bxa7 {[%clk 0:00:06.2]}
44... Kc7 {[%clk 0:00:24.5]} 45. b4 {[%clk 0:00:02.6]} 45... cxb4 {[%clk
0:00:24.4]} 46. c5 {[%clk 0:00:02.6]} 46... Bxc5 {[%clk 0:00:24.9]} 0-1

[Event "Early-Titled-Tuesday-Blitz-March-12-2024"]
[Site "Chess.com"]
[Date "2024.03.12"]
[Round "8"]
[White "AlexeiShirov"]
[Black "Jimonios"]
[Result "1-0"]
[WhiteElo "2874"]
[BlackElo "2679"]
[TimeControl "180+1"]
[EndTime "9:27:07 PDT"]
[Termination "AlexeiShirov won by checkmate"]

1. e4 {[%clk 0:03:00.9]} 1... e5 {[%clk 0:02:58.5]} 2. Nf3 {[%clk 0:03:00.8]}
2... Nc6 {[%clk 0:02:59.2]} 3. Bc4 {[%clk 0:03:00.1]} 3... Bc5 {[%clk 0:02:55]}
4. c3 {[%clk 0:02:59]} 4... Nf6 {[%clk 0:02:55.6]} 5. d4 {[%clk 0:02:58.8]} 5...
exd4 {[%clk 0:02:54.3]} 6. e5 {[%clk 0:02:58.9]} 6... d5 {[%clk 0:02:54.1]} 7.
Bb5 {[%clk 0:02:58.6]} 7... Ne4 {[%clk 0:02:54]} 8. cxd4 {[%clk 0:02:58.1]} 8...
Bb6 {[%clk 0:02:54.7]} 9. Nc3 {[%clk 0:02:48]} 9... O-O {[%clk 0:02:55.1]} 10.
Be3 {[%clk 0:02:45]} 10... f5 {[%clk 0:02:54.2]} 11. Ne2 {[%clk 0:02:19.5]}
11... Ba5+ {[%clk 0:02:37.7]} 12. Kf1 {[%clk 0:02:19]} 12... f4 {[%clk
0:02:31.4]} 13. Nxf4 {[%clk 0:02:05]} 13... g5 {[%clk 0:02:18.5]} 14. Nd3 {[%clk
0:01:53.1]} 14... g4 {[%clk 0:02:17.9]} 15. Nfe1 {[%clk 0:01:48.8]} 15... Qh4
{[%clk 0:02:00.8]} 16. Kg1 {[%clk 0:01:44.8]} 16... Ne7 {[%clk 0:01:24.9]} 17.
g3 {[%clk 0:01:34.5]} 17... Qh5 {[%clk 0:01:10.5]} 18. Nf4 {[%clk 0:01:27.9]}
18... Qf5 {[%clk 0:01:10.4]} 19. h3 {[%clk 0:01:24.5]} 19... gxh3 {[%clk
0:01:06.9]} 20. Rxh3 {[%clk 0:01:22]} 20... Kh8 {[%clk 0:00:32]} 21. Rh5 {[%clk
0:01:11.8]} 21... Qg4 {[%clk 0:00:31.8]} 22. Qxg4 {[%clk 0:01:03.3]} 22... Bxg4
{[%clk 0:00:31.4]} 23. Rh4 {[%clk 0:01:03.1]} 23... Bf5 {[%clk 0:00:25.8]} 24.
Nf3 {[%clk 0:01:01.5]} 24... c6 {[%clk 0:00:15]} 25. Bd3 {[%clk 0:00:58.7]}
25... Nxg3 {[%clk 0:00:15.3]} 26. fxg3 {[%clk 0:00:51.2]} 26... Bxd3 {[%clk
0:00:15.4]} 27. Ng5 {[%clk 0:00:45.2]} 27... Rg8 {[%clk 0:00:10.4]} 28. Nf7+
{[%clk 0:00:42]} 28... Kg7 {[%clk 0:00:10.3]} 29. Nxd3 {[%clk 0:00:41.2]} 29...
Kxf7 {[%clk 0:00:10.7]} 30. Rxh7+ {[%clk 0:00:41.2]} 30... Ke6 {[%clk
0:00:10.5]} 31. Nc5+ {[%clk 0:00:40]} 31... Kf5 {[%clk 0:00:09.8]} 32. Rf1+
{[%clk 0:00:38.2]} 32... Kg4 {[%clk 0:00:10.2]} 33. Kg2 {[%clk 0:00:24.2]} 33...
Ng6 {[%clk 0:00:08.5]} 34. Nd7 {[%clk 0:00:21.7]} 34... Bd8 {[%clk 0:00:06.9]}
35. e6 {[%clk 0:00:20.7]} 35... Be7 {[%clk 0:00:05.3]} 36. Ne5+ {[%clk
0:00:19.4]} 36... Nxe5 {[%clk 0:00:05.1]} 37. dxe5 {[%clk 0:00:18.8]} 37... Bg5
{[%clk 0:00:05]} 38. Bxg5 {[%clk 0:00:18.1]} 38... Kxg5 {[%clk 0:00:05.2]} 39.
Rff7 {[%clk 0:00:17.9]} 39... Rae8 {[%clk 0:00:05.1]} 40. e7 {[%clk 0:00:18]}
40... Kg6 {[%clk 0:00:05.5]} 41. Kf3 {[%clk 0:00:18.3]} 41... c5 {[%clk
0:00:05.5]} 42. e6 {[%clk 0:00:18.4]} 42... d4 {[%clk 0:00:05.4]} 43. Kf4 {[%clk
0:00:18]} 43... a5 {[%clk 0:00:03.7]} 44. g4 {[%clk 0:00:18]} 44... d3 {[%clk
0:00:01.8]} 45. g5 {[%clk 0:00:17.9]} 45... Rgf8 {[%clk 0:00:01.4]} 46. Rh6#
{[%clk 0:00:17.9]} 1-0

[Event "Early-Titled-Tuesday-Blitz-March-12-2024"]
[Site "Chess.com"]
[Date "2024.03.12"]
[Round "8"]
[White "pfalcon1949"]
[Black "geminithegreat"]
[Result "1-0"]
[WhiteElo "1960"]
[BlackElo "2207"]
[TimeControl "180+1"]
[EndTime "9:27:07 PDT"]
[Termination "pfalcon1949 won by resignation"]

1. e4 {[%clk 0:03:00.9]} 1... e5 {[%clk 0:02:59.8]} 2. Nf3 {[%clk 0:03:00.8]}
2... Nc6 {[%clk 0:03:00.2]} 3. Nc3 {[%clk 0:03:00.6]} 3... Nf6 {[%clk
0:02:59.9]} 4. Nxe5 {[%clk 0:03:00.7]} 4... Nxe5 {[%clk 0:02:59.6]} 5. d4 {[%clk
0:03:00.9]} 5... Nc6 {[%clk 0:02:58.6]} 6. d5 {[%clk 0:03:00.6]} 6... Nb8 {[%clk
0:02:57.5]} 7. e5 {[%clk 0:03:00.7]} 7... Ng8 {[%clk 0:02:58.1]} 8. d6 {[%clk
0:03:00.7]} 8... cxd6 {[%clk 0:02:57.5]} 9. exd6 {[%clk 0:02:57.6]} 9... Qf6
{[%clk 0:02:57]} 10. Nb5 {[%clk 0:02:47.8]} 10... Na6 {[%clk 0:02:53.8]} 11. Bc4
{[%clk 0:02:38.8]} 11... Qe5+ {[%clk 0:02:29.9]} 12. Be3 {[%clk 0:02:08.3]}
12... Nf6 {[%clk 0:02:14.2]} 13. O-O {[%clk 0:02:05.9]} 13... b6 {[%clk
0:01:56.4]} 14. Re1 {[%clk 0:01:48.5]} 14... Bb7 {[%clk 0:01:31]} 15. Bf4 {[%clk
0:01:37.2]} 15... Qxe1+ {[%clk 0:01:29.5]} 16. Qxe1+ {[%clk 0:01:36.2]} 16...
Kd8 {[%clk 0:01:30.1]} 17. Nc7 {[%clk 0:01:24.9]} 17... Nxc7 {[%clk 0:01:22.7]}
18. dxc7+ {[%clk 0:01:24.4]} 18... Kc8 {[%clk 0:01:23.1]} 19. Rd1 {[%clk
0:01:15.1]} 19... d5 {[%clk 0:01:20.1]} 20. Bb5 {[%clk 0:01:06.5]} 20... a6
{[%clk 0:01:07.1]} 21. Be8 {[%clk 0:01:02]} 21... Bc5 {[%clk 0:01:03.3]} 22.
Bxf7 {[%clk 0:00:59.9]} 22... Bc6 {[%clk 0:00:48.5]} 23. Be6+ {[%clk 0:00:49.1]}
23... Kb7 {[%clk 0:00:48.3]} 24. c8=Q+ {[%clk 0:00:41]} 24... Raxc8 {[%clk
0:00:48.6]} 25. Bxc8+ {[%clk 0:00:41.2]} 25... Rxc8 {[%clk 0:00:49.3]} 26. Qe6
{[%clk 0:00:34.5]} 26... Ne4 {[%clk 0:00:41.9]} 27. Qf7+ {[%clk 0:00:33.1]}
27... Ka8 {[%clk 0:00:37.5]} 28. Bg3 {[%clk 0:00:24.8]} 28... Rf8 {[%clk
0:00:20.5]} 29. Qxg7 {[%clk 0:00:22.5]} 29... Nxf2 {[%clk 0:00:16.6]} 30. Bxf2
{[%clk 0:00:19.3]} 30... Rxf2 {[%clk 0:00:09.1]} 31. Kh1 {[%clk 0:00:19.3]}
31... d4 {[%clk 0:00:06.5]} 32. Qg8+ {[%clk 0:00:15.1]} 32... Kb7 {[%clk
0:00:05.9]} 33. Qg7+ {[%clk 0:00:15.5]} 33... Kb8 {[%clk 0:00:04.3]} 34. Rg1
{[%clk 0:00:05.6]} 34... Rxc2 {[%clk 0:00:02.4]} 35. Qh8+ {[%clk 0:00:05.8]}
35... Ka7 {[%clk 0:00:02.2]} 36. Qxh7+ {[%clk 0:00:06.3]} 36... Bb7 {[%clk
0:00:01.2]} 37. Qxc2 {[%clk 0:00:06.5]} 1-0

[Event "Early-Titled-Tuesday-Blitz-March-12-2024"]
[Site "Chess.com"]
[Date "2024.03.12"]
[Round "8"]
[White "snowlord"]
[Black "PepeCuenca"]
[Result "1-0"]
[WhiteElo "2915"]
[BlackElo "2710"]
[TimeControl "180+1"]
[EndTime "9:27:09 PDT"]
[Termination "snowlord won on time"]

1. e4 {[%clk 0:03:00.9]} 1... c5 {[%clk 0:02:57.8]} 2. Nf3 {[%clk 0:03:01.3]}
2... Nc6 {[%clk 0:02:57]} 3. d4 {[%clk 0:03:01.1]} 3... cxd4 {[%clk 0:02:57.3]}
4. Nxd4 {[%clk 0:03:02]} 4... e5 {[%clk 0:02:57.2]} 5. Nb5 {[%clk 0:03:01.8]}
5... d6 {[%clk 0:02:57.7]} 6. N1c3 {[%clk 0:03:02.1]} 6... a6 {[%clk 0:02:58]}
7. Na3 {[%clk 0:03:02.6]} 7... Be7 {[%clk 0:02:53.2]} 8. Nc4 {[%clk 0:03:00.7]}
8... b5 {[%clk 0:02:49.5]} 9. Ne3 {[%clk 0:03:00.5]} 9... Nf6 {[%clk 0:02:49.5]}
10. a4 {[%clk 0:02:56.7]} 10... b4 {[%clk 0:02:45]} 11. Ncd5 {[%clk 0:02:57]}
11... O-O {[%clk 0:02:36]} 12. Bd3 {[%clk 0:02:44]} 12... a5 {[%clk 0:02:22.3]}
13. c3 {[%clk 0:02:33.6]} 13... bxc3 {[%clk 0:02:19]} 14. bxc3 {[%clk
0:02:34.5]} 14... Nxd5 {[%clk 0:02:15.6]} 15. Nxd5 {[%clk 0:02:18.2]} 15... Bg5
{[%clk 0:02:10.1]} 16. Bb5 {[%clk 0:02:18.7]} 16... Bb7 {[%clk 0:01:54.5]} 17.
Qg4 {[%clk 0:02:15.7]} 17... Bxc1 {[%clk 0:01:47.6]} 18. Rxc1 {[%clk 0:02:16.6]}
18... Ne7 {[%clk 0:01:38.6]} 19. c4 {[%clk 0:02:03.8]} 19... Nc6 {[%clk
0:01:03.8]} 20. c5 {[%clk 0:02:01.9]} 20... dxc5 {[%clk 0:00:45.9]} 21. Rxc5
{[%clk 0:02:02.8]} 21... Nd4 {[%clk 0:00:44.5]} 22. O-O {[%clk 0:02:00.5]} 22...
Bxd5 {[%clk 0:00:42.1]} 23. Rxd5 {[%clk 0:02:00.3]} 23... Qf6 {[%clk 0:00:29.2]}
24. h3 {[%clk 0:01:37.3]} 24... Rad8 {[%clk 0:00:25.7]} 25. Bc4 {[%clk
0:01:34.9]} 25... g6 {[%clk 0:00:21.4]} 26. Rxa5 {[%clk 0:01:29.1]} 26... h5
{[%clk 0:00:18.9]} 27. Qg3 {[%clk 0:01:29.7]} 27... Rc8 {[%clk 0:00:16.4]} 28.
Qd3 {[%clk 0:01:29.9]} 28... Qc6 {[%clk 0:00:11.5]} 29. Rc1 {[%clk 0:01:17]}
29... Kg7 {[%clk 0:00:10.1]} 30. Rxe5 {[%clk 0:01:16.6]} 30... Rfd8 {[%clk
0:00:07.9]} 31. Rd5 {[%clk 0:01:17.2]} 31... Rxd5 {[%clk 0:00:06.9]} 32. exd5
{[%clk 0:01:18.1]} 32... Qb6 {[%clk 0:00:07.5]} 33. Rd1 {[%clk 0:01:14.3]} 33...
Nf5 {[%clk 0:00:07.3]} 34. Bb5 {[%clk 0:01:13.6]} 34... Nd6 {[%clk 0:00:06.3]}
35. Qd4+ {[%clk 0:01:13.7]} 35... Qxd4 {[%clk 0:00:06.1]} 36. Rxd4 {[%clk
0:01:14.6]} 36... Rc1+ {[%clk 0:00:04.9]} 37. Kh2 {[%clk 0:01:15.2]} 37... Kf6
{[%clk 0:00:05.1]} 38. Rd2 {[%clk 0:01:01.4]} 38... Ke5 {[%clk 0:00:03.7]} 39.
Bc6 {[%clk 0:01:01.9]} 39... Ra1 {[%clk 0:00:03.5]} 40. Re2+ {[%clk 0:01:01.5]}
40... Kd4 {[%clk 0:00:03.1]} 41. g4 {[%clk 0:00:58.1]} 41... h4 {[%clk
0:00:03.3]} 42. Kg2 {[%clk 0:00:57.9]} 42... g5 {[%clk 0:00:03.1]} 43. Re3
{[%clk 0:00:47.5]} 43... Ra2 {[%clk 0:00:03]} 44. Rf3 {[%clk 0:00:47.9]} 44...
Ke5 {[%clk 0:00:02.5]} 45. Re3+ {[%clk 0:00:41.2]} 45... Kd4 {[%clk 0:00:02.9]}
46. Kf3 {[%clk 0:00:41.8]} 46... Kc5 {[%clk 0:00:03]} 47. Re5 {[%clk 0:00:40.8]}
47... Kd4 {[%clk 0:00:02.8]} 48. Re7 {[%clk 0:00:32.4]} 48... Kc5 {[%clk
0:00:02.9]} 49. Re2 {[%clk 0:00:24.8]} 49... Kd4 {[%clk 0:00:03.1]} 50. Kg2
{[%clk 0:00:25.5]} 50... Kc5 {[%clk 0:00:03.4]} 51. Rxa2 {[%clk 0:00:25.4]} 1-0

[Event "Early-Titled-Tuesday-Blitz-March-12-2024"]
[Site "Chess.com"]
[Date "2024.03.12"]
[Round "8"]
[White "HansOnTwitch"]
[Black "yosephtaher"]
[Result "1-0"]
[WhiteElo "3112"]
[BlackElo "2946"]
[TimeControl "180+1"]
[EndTime "9:27:10 PDT"]
[Termination "HansOnTwitch won by resignation"]

1. e4 {[%clk 0:03:00.4]} 1... c5 {[%clk 0:02:56.9]} 2. Nf3 {[%clk 0:03:00.2]}
2... g6 {[%clk 0:02:57.5]} 3. c3 {[%clk 0:02:58.1]} 3... Nf6 {[%clk 0:02:57.6]}
4. e5 {[%clk 0:02:57.1]} 4... Nd5 {[%clk 0:02:58.1]} 5. d4 {[%clk 0:02:53.7]}
5... cxd4 {[%clk 0:02:59]} 6. Qxd4 {[%clk 0:02:38.8]} 6... Nc7 {[%clk
0:02:58.9]} 7. Bc4 {[%clk 0:02:36]} 7... Bg7 {[%clk 0:02:57.8]} 8. Qh4 {[%clk
0:02:21.7]} 8... h6 {[%clk 0:02:56.9]} 9. O-O {[%clk 0:02:18.7]} 9... Ne6 {[%clk
0:02:55.9]} 10. Rd1 {[%clk 0:02:11]} 10... Qc7 {[%clk 0:02:53.7]} 11. Na3 {[%clk
0:02:04.5]} 11... a6 {[%clk 0:02:51.8]} 12. Be3 {[%clk 0:01:48]} 12... b5 {[%clk
0:02:46.6]} 13. Bd5 {[%clk 0:01:38.7]} 13... Nc6 {[%clk 0:02:46.7]} 14. c4
{[%clk 0:01:34.2]} 14... b4 {[%clk 0:02:46.6]} 15. Nc2 {[%clk 0:01:34.5]} 15...
Rb8 {[%clk 0:02:43.4]} 16. b3 {[%clk 0:01:17.8]} 16... Nxe5 {[%clk 0:02:40.1]}
17. Nxe5 {[%clk 0:01:16.8]} 17... Bxe5 {[%clk 0:02:40.1]} 18. Rac1 {[%clk
0:01:16.4]} 18... g5 {[%clk 0:02:39.6]} 19. Qe4 {[%clk 0:01:12.7]} 19... Bxh2+
{[%clk 0:02:36.2]} 20. Kf1 {[%clk 0:01:11.5]} 20... Bf4 {[%clk 0:02:37.1]} 21.
g3 {[%clk 0:00:52.6]} 21... Bxe3 {[%clk 0:02:33.2]} 22. Nxe3 {[%clk 0:00:53.5]}
22... Nc5 {[%clk 0:02:31.4]} 23. Qd4 {[%clk 0:00:51.1]} 23... f6 {[%clk
0:02:21.3]} 24. Nf5 {[%clk 0:00:45]} 24... d6 {[%clk 0:02:19.7]} 25. Nxe7 {[%clk
0:00:38.7]} 25... Bh3+ {[%clk 0:02:08.1]} 26. Kg1 {[%clk 0:00:32]} 26... Qxe7
{[%clk 0:02:06.7]} 27. Re1 {[%clk 0:00:31.3]} 27... Be6 {[%clk 0:02:06]} 28.
Bxe6 {[%clk 0:00:29.5]} 28... Nxe6 {[%clk 0:02:06.9]} 29. Qd5 {[%clk 0:00:16.9]}
29... Kf7 {[%clk 0:02:05.3]} 30. Re3 {[%clk 0:00:17.5]} 30... Rhe8 {[%clk
0:02:05.1]} 31. Rce1 {[%clk 0:00:18.2]} 31... Qd7 {[%clk 0:01:55.9]} 32. f4
{[%clk 0:00:15.5]} 32... gxf4 {[%clk 0:01:51.1]} 33. gxf4 {[%clk 0:00:16.4]}
33... Rg8+ {[%clk 0:01:20.7]} 34. Kf2 {[%clk 0:00:15.5]} 34... Rbe8 {[%clk
0:00:55.2]} 35. f5 {[%clk 0:00:15.8]} 35... Qa7 {[%clk 0:00:55.2]} 36. fxe6+
{[%clk 0:00:06.8]} 36... Ke7 {[%clk 0:00:55.8]} 37. Rd1 {[%clk 0:00:07.4]} 37...
Rd8 {[%clk 0:00:50.9]} 38. Qf5 {[%clk 0:00:07.7]} 38... Rg7 {[%clk 0:00:43]} 39.
Rd5 {[%clk 0:00:07.9]} 39... Rc8 {[%clk 0:00:35.4]} 40. Qf4 {[%clk 0:00:06.1]}
40... Qb6 {[%clk 0:00:32.5]} 41. Ke2 {[%clk 0:00:05.1]} 41... Rg5 {[%clk
0:00:29.4]} 42. Rxg5 {[%clk 0:00:04]} 42... hxg5 {[%clk 0:00:30.1]} 43. Qh2
{[%clk 0:00:04.2]} 43... Qc6 {[%clk 0:00:16.8]} 44. Qh7+ {[%clk 0:00:03.9]}
44... Kd8 {[%clk 0:00:17.4]} 45. e7+ {[%clk 0:00:04.5]} 45... Ke8 {[%clk
0:00:15.4]} 46. Qg8+ {[%clk 0:00:04.2]} 46... Kd7 {[%clk 0:00:16]} 47. e8=Q+
{[%clk 0:00:04.9]} 1-0

[Event "Early-Titled-Tuesday-Blitz-March-12-2024"]
[Site "Chess.com"]
[Date "2024.03.12"]
[Round "8"]
[White "Abund"]
[Black "CarlosjPineror"]
[Result "1-0"]
[WhiteElo "2797"]
[BlackElo "2620"]
[TimeControl "180+1"]
[EndTime "9:27:10 PDT"]
[Termination "Abund won by resignation"]

1. e4 {[%clk 0:03:00.9]} 1... c5 {[%clk 0:02:58.9]} 2. Nf3 {[%clk 0:03:00.5]}
2... e6 {[%clk 0:02:59.3]} 3. d3 {[%clk 0:02:59.9]} 3... Nc6 {[%clk 0:02:59]} 4.
g3 {[%clk 0:03:00.2]} 4... d5 {[%clk 0:02:59.6]} 5. Nbd2 {[%clk 0:02:58]} 5...
Nf6 {[%clk 0:03:00]} 6. Bg2 {[%clk 0:02:58.1]} 6... Be7 {[%clk 0:03:00.6]} 7.
O-O {[%clk 0:02:58.8]} 7... O-O {[%clk 0:03:00.9]} 8. Re1 {[%clk 0:02:59]} 8...
b5 {[%clk 0:02:58.5]} 9. e5 {[%clk 0:02:54.9]} 9... Nd7 {[%clk 0:02:58.4]} 10.
h4 {[%clk 0:02:54.5]} 10... b4 {[%clk 0:02:58.7]} 11. Nf1 {[%clk 0:02:54.7]}
11... a5 {[%clk 0:02:59.4]} 12. Bf4 {[%clk 0:02:53.9]} 12... Nd4 {[%clk
0:02:57.6]} 13. h5 {[%clk 0:02:43.2]} 13... h6 {[%clk 0:02:53.6]} 14. N1h2
{[%clk 0:02:42.7]} 14... Ba6 {[%clk 0:02:52.9]} 15. Nxd4 {[%clk 0:02:33.5]}
15... cxd4 {[%clk 0:02:52.6]} 16. Qd2 {[%clk 0:02:33.7]} 16... Kh7 {[%clk
0:02:51.5]} 17. Ng4 {[%clk 0:02:33.4]} 17... Bg5 {[%clk 0:02:51.3]} 18. a3
{[%clk 0:02:29.3]} 18... Bxf4 {[%clk 0:02:44.1]} 19. Qxf4 {[%clk 0:02:27.9]}
19... Qb6 {[%clk 0:02:40.8]} 20. axb4 {[%clk 0:02:15.3]} 20... Qxb4 {[%clk
0:02:33.4]} 21. b3 {[%clk 0:01:58.5]} 21... Rac8 {[%clk 0:02:24.7]} 22. Re2
{[%clk 0:01:56.3]} 22... Bb5 {[%clk 0:02:21.4]} 23. Nh2 {[%clk 0:01:51.9]} 23...
Qc3 {[%clk 0:02:05.9]} 24. Ra2 {[%clk 0:01:44.1]} 24... f6 {[%clk 0:01:42.9]}
25. exf6 {[%clk 0:01:30.3]} 25... Rxf6 {[%clk 0:01:42.4]} 26. Qg4 {[%clk
0:01:25.3]} 26... Nf8 {[%clk 0:00:40.6]} 27. Nf3 {[%clk 0:01:19.9]} 27... Qb4
{[%clk 0:00:33.5]} 28. Qxd4 {[%clk 0:01:10.9]} 28... Nd7 {[%clk 0:00:28.9]} 29.
Qxb4 {[%clk 0:01:06.6]} 29... axb4 {[%clk 0:00:29.8]} 30. Nd4 {[%clk 0:01:07.3]}
30... Rb8 {[%clk 0:00:28.9]} 31. Rxe6 {[%clk 0:00:53]} 31... Rxe6 {[%clk
0:00:27.2]} 32. Nxe6 {[%clk 0:00:53.9]} 32... Nf6 {[%clk 0:00:27.8]} 33. Bf3
{[%clk 0:00:50.4]} 33... Bd7 {[%clk 0:00:27.6]} 34. Nf4 {[%clk 0:00:48.8]} 34...
Bc6 {[%clk 0:00:27.6]} 35. Ra6 {[%clk 0:00:48.3]} 35... Rc8 {[%clk 0:00:27.6]}
36. d4 {[%clk 0:00:46.5]} 36... Be8 {[%clk 0:00:27.2]} 37. Be2 {[%clk
0:00:45.6]} 37... Kg8 {[%clk 0:00:25.5]} 38. Bd3 {[%clk 0:00:42.7]} 38... Nxh5
{[%clk 0:00:24.9]} 39. Nxd5 {[%clk 0:00:43]} 39... Rd8 {[%clk 0:00:22.2]} 40.
Ne7+ {[%clk 0:00:39.5]} 40... Kf8 {[%clk 0:00:21.7]} 41. Nf5 {[%clk 0:00:38.8]}
41... Nf6 {[%clk 0:00:20.9]} 42. Nxh6 {[%clk 0:00:34.3]} 42... Bh5 {[%clk
0:00:17.5]} 43. Kg2 {[%clk 0:00:29.1]} 43... Rxd4 {[%clk 0:00:16.2]} 44. Nf5
{[%clk 0:00:28.5]} 44... Rd5 {[%clk 0:00:12.9]} 45. Ra8+ {[%clk 0:00:27.2]}
45... Kf7 {[%clk 0:00:12.6]} 46. Ra7+ {[%clk 0:00:27.3]} 46... Ke6 {[%clk
0:00:13]} 47. Nxg7+ {[%clk 0:00:26.7]} 47... Kd6 {[%clk 0:00:13.6]} 48. Ra6+
{[%clk 0:00:25.7]} 48... Ke5 {[%clk 0:00:12.8]} 49. f4+ {[%clk 0:00:24]} 49...
Kd4 {[%clk 0:00:12]} 50. Rxf6 {[%clk 0:00:24]} 50... Bd1 {[%clk 0:00:12.6]} 1-0